bitfinex-derivatives/quotes_BNBF0:USTF0_20241230
["timestamp","ask_amount","ask_price","bid_price","bid_amount"]
[1735555424145,0.26396961,698.18,696.71,1.06819847]
[1735555424146,0.26396961,698.17,696.73,0.5598582]
[1735555424350,0.26397086,698.16,696.74,0.5598582]
[1735555424550,0.26397086,698.15,696.75,0.5598582]
[1735555424749,0.26397086,698.14,696.71,1.06819847]
[1735555425052,1.0742753,698.18,696.72,0.56017878]
[1735555425053,0.26397086,698.13,696.72,0.56017878]
[1735555425253,0.26397086,698.12,696.73,0.56017878]
[1735555425454,0.26397086,698.11,696.74,0.56017878]
[1735555425649,0.26397086,698.11,696.71,1.06819847]
[1735555425650,0.26397086,698.1,696.75,0.56017878]
[1735555425851,0.26397086,698.09,696.76,0.56017878]
[1735555426055,0.26397086,698.08,696.77,0.56017878]
[1735555426258,0.26397086,698.07,696.78,0.56017878]
[1735555426459,0.26397086,698.06,696.79,0.56017878]
[1735555426658,0.26397086,698.05,696.8,0.56017878]
[1735555426955,0.26397086,698.04,696.81,0.56017878]
[1735555427156,0.26397086,698.03,696.82,0.56017878]
[1735555427361,0.26397086,698.02,696.83,0.56017878]
[1735555427662,0.26397587,698.01,696.84,0.56017878]
[1735555427858,0.26397587,698.0,696.62,1.06819847]
[1735555428162,0.26397587,697.99,696.63,0.56035362]
[1735555428354,0.26397587,697.98,696.64,0.56035362]
[1735555428560,0.26397587,697.97,696.65,0.56045728]
[1735555428859,0.26397587,697.96,696.66,0.56045728]
[1735555429064,0.26397587,697.95,696.67,0.56045728]
[1735555429266,0.26397587,697.94,696.83,1.07098187]
[1735555429460,0.26397587,697.93,696.84,0.56045728]
[1735555429661,0.26396357,697.92,696.85,0.56045728]
[1735555429859,0.26396357,697.91,696.86,0.56045728]
[1735555430062,0.26396357,697.9,696.87,0.56045728]
[1735555430263,0.26396357,697.89,696.88,0.56045728]
[1735555430457,0.26396357,697.88,696.89,0.56045728]
[1735555430659,1.0742753,698.34,696.9,0.56045728]
[1735555430964,0.2639759,698.33,696.91,0.56045728]
[1735555431158,0.2639759,698.32,696.92,0.56045728]
[1735555431358,0.55038165,698.31,696.93,0.56045728]
[1735555431562,0.2639759,698.3,696.94,0.56045728]
[1735555431765,0.2639759,698.3,696.95,0.56045728]
[1735555431959,0.2639759,698.3,696.96,0.56045728]
[1735555432163,0.28641805,698.28,696.97,0.56045728]
[1735555432359,0.26402191,698.27,696.98,0.56045728]
[1735555432564,0.26402191,698.27,696.99,0.56045728]
[1735555432766,0.26402191,698.27,697.0,0.56045728]
[1735555432968,0.26402191,698.27,697.01,0.56045728]
[1735555433163,0.26402191,698.27,697.02,0.56045728]
[1735555433367,0.26402191,698.27,697.03,0.56045728]
[1735555433567,0.26402191,698.27,697.04,0.56045728]
[1735555433763,0.26402191,698.27,697.05,0.56045728]
[1735555433962,0.28643036,698.25,697.06,0.56045728]
[1735555434161,0.26402191,698.24,697.07,0.56045728]
[1735555434363,0.26402191,698.24,697.08,0.56045728]
[1735555434567,0.26402191,698.24,697.09,0.56045728]
[1735555434767,0.28643036,698.25,697.1,1e-08]
[1735555435068,0.26402213,698.24,696.16,1.07098187]
[1735555435468,0.26406012,698.23,696.16,1.07098187]
[1735555435668,0.26406012,698.22,696.16,1.07098187]
[1735555435869,0.26406012,698.21,696.16,1.07098187]
[1735555436070,0.26406012,698.2,696.16,1.07098187]
[1735555436271,0.28643036,698.25,696.07,1.07098187]
[1735555436272,0.26406012,698.19,696.07,1.07098187]
[1735555436466,0.28649601,698.09,696.07,1.07098187]
[1735555438971,0.28649601,698.09,696.05,1.07098187]
[1735555441468,0.2640586,698.08,696.05,1.07098187]
[1735555441671,0.28654116,697.98,696.05,1.07098187]
[1735555442674,0.28654116,697.98,696.09,1.07098187]
[1735555442675,0.26405948,697.97,696.09,1.07098187]
[1735555443177,0.28655347,697.95,696.09,1.07098187]
[1735555443372,0.26405948,697.94,696.33,1.07098187]
[1735555443875,0.28656579,697.92,696.33,1.07098187]
[1735555444071,0.26405948,697.91,696.33,1.07098187]
[1735555444377,0.26405948,697.91,696.36,1.07098187]
[1735555444378,0.28657811,697.89,696.36,1.07098187]
[1735555444675,0.26402464,697.88,696.36,1.07098187]
[1735555444874,0.28659043,697.86,696.36,1.07098187]
[1735555445073,0.26402464,697.85,696.36,1.07098187]
[1735555445275,0.28660275,697.83,696.36,1.07098187]
[1735555445574,0.26402464,697.82,696.47,1.07098187]
[1735555445774,0.28661507,697.8,696.47,1.07098187]
[1735555445969,0.26402464,697.79,696.47,1.07098187]
[1735555446175,0.28662739,697.77,696.47,1.07098187]
[1735555446375,0.26402464,697.76,696.47,1.07098187]
[1735555446675,0.28663972,697.74,696.49,1.07098187]
[1735555446874,0.2640114,697.73,696.5,0.55093621]
[1735555447077,0.28665204,697.71,696.51,0.55093621]
[1735555447270,0.28665204,697.71,696.49,1.07098187]
[1735555447271,0.2640114,697.7,696.52,0.55093621]
[1735555447471,0.2640114,697.7,696.64,1.07098187]
[1735555447671,0.2640114,697.7,696.65,0.55093621]
[1735555447870,0.2640114,697.7,696.64,1.07098187]
[1735555447871,0.2640114,697.7,696.66,0.55093621]
[1735555448076,0.28666437,697.68,696.67,0.55093621]
[1735555448377,0.2640114,697.67,696.68,0.55093621]
[1735555448578,0.2866767,697.65,696.69,0.55103057]
[1735555448778,0.2640114,697.64,696.7,0.55103057]
[1735555448979,0.28668902,697.62,696.71,0.55103057]
[1735555449176,0.2640114,697.61,696.72,0.55103057]
[1735555449380,0.28670135,697.59,696.73,0.55103057]
[1735555449580,0.2640114,697.58,696.74,0.55103057]
[1735555449880,0.28671368,697.56,696.75,0.55103057]
[1735555450080,0.2640114,697.55,696.76,0.55103057]
[1735555450381,0.55074722,697.54,696.77,0.55103057]
[1735555450679,0.55075133,697.53,696.78,0.55103057]
[1735555450880,0.55075544,697.52,696.79,0.55103057]
[1735555451075,0.55075956,697.51,696.8,0.55103057]
[1735555451276,0.55076367,697.5,696.81,0.55103057]
[1735555451575,0.28674246,697.49,696.82,0.55115223]
[1735555451780,0.28674246,697.49,696.83,0.55115223]
[1735555451979,0.28674246,697.49,696.84,0.55115223]
[1735555452176,0.28674246,697.49,696.85,0.55115223]
[1735555452374,0.28674246,697.49,696.86,0.55115223]
[1735555452579,0.28674246,697.49,696.87,0.55115223]
[1735555452779,0.28674246,697.49,696.88,0.55115223]
[1735555452976,0.28674246,697.49,696.89,0.55115223]
[1735555453276,0.28674246,697.49,696.9,0.55115223]
[1735555453481,0.28674246,697.49,696.91,0.55115223]
[1735555453680,0.28674246,697.49,696.92,0.55115223]
[1735555453884,0.28674246,697.49,696.93,0.55115223]
[1735555454183,0.28674246,697.49,696.94,0.55115223]
[1735555454382,0.28674246,697.49,696.95,0.55115223]
[1735555454583,0.28674246,697.49,696.96,0.55115223]
[1735555454783,0.28674246,697.49,696.97,0.55115223]
[1735555454983,0.28674246,697.49,696.98,0.55115223]
[1735555455184,0.28674246,697.49,696.64,1.07098187]
[1735555455384,0.28674246,697.49,696.65,0.5511415]
[1735555455684,0.28674246,697.49,696.66,1.62212337]
[1735555455880,0.28674246,697.49,696.67,0.5511415]
[1735555456184,0.28674246,697.49,696.68,0.5511628]
[1735555456383,0.28674246,697.49,696.69,0.5511628]
[1735555456577,0.28674246,697.49,696.7,0.5511628]
[1735555456777,0.28674246,697.49,696.66,1.07098187]
[1735555456778,0.28674246,697.49,696.71,0.5511628]
[1735555456984,0.28674246,697.49,696.72,0.5511628]
[1735555457188,0.28674246,697.49,696.73,0.5511628]
[1735555457377,0.28674246,697.49,696.74,0.5511628]
[1735555457579,0.28674246,697.49,696.75,0.5511628]
[1735555457781,0.28674246,697.49,696.69,1.07098187]
[1735555457782,0.28674246,697.49,696.76,0.5511561]
[1735555457979,0.28674246,697.49,696.77,0.5511561]
[1735555458183,0.28674246,697.49,696.78,0.5511561]
[1735555458385,0.28674246,697.49,696.79,0.5511561]
[1735555458585,0.28674246,697.49,696.8,0.5511561]
[1735555458787,0.28674246,697.49,696.81,0.5511561]
[1735555459081,0.28674246,697.49,696.71,1.07098187]
[1735555459082,0.28674246,697.49,696.82,0.5511561]
[1735555459281,0.28674246,697.49,696.83,0.5511561]
[1735555459481,0.28674246,697.49,696.84,0.5511561]
[1735555459682,0.28674246,697.49,696.85,0.5511561]
[1735555459886,0.28674246,697.49,696.86,0.5511561]
[1735555460080,0.28674246,697.49,696.87,0.5511561]
[1735555460285,0.28674246,697.49,696.88,0.5511561]
[1735555460481,0.28674246,697.49,696.89,0.5511561]
[1735555460686,0.28674246,697.49,696.9,0.5511561]
[1735555460883,0.28674246,697.49,696.91,0.5511561]
[1735555461081,0.28674246,697.49,696.92,0.5511561]
[1735555461285,0.28674246,697.49,696.93,0.5511561]
[1735555461486,0.28674246,697.49,696.94,0.5511561]
[1735555461687,0.28674246,697.49,696.95,0.5511561]
[1735555461987,0.28674246,697.49,696.96,0.5511561]
[1735555462288,0.28674246,697.49,696.97,0.5511561]
[1735555462485,0.28674246,697.49,696.98,0.5511561]
[1735555462691,0.28674246,697.49,696.99,0.5511561]
[1735555462890,0.28674246,697.49,697.0,0.5511561]
[1735555463189,0.28674246,697.49,697.01,0.5511561]
[1735555463382,0.28674246,697.49,697.02,0.5511561]
[1735555463587,0.28674246,697.49,697.03,0.5511561]
[1735555463892,0.28674246,697.49,697.04,0.5511561]
[1735555464188,0.28674246,697.49,697.05,0.5511561]
[1735555464384,0.28674246,697.49,697.06,0.5511561]
[1735555464587,0.28674246,697.49,697.07,0.5511561]
[1735555464786,0.28674246,697.49,697.08,0.5511561]
[1735555464988,0.28674246,697.49,697.09,0.5511561]
[1735555465188,0.28674246,697.49,697.1,0.5511561]
[1735555465384,0.28674246,697.49,697.11,0.5511561]
[1735555465586,0.28674246,697.49,697.12,0.5511561]
[1735555465891,0.28674246,697.49,697.13,0.5511561]
[1735555466192,0.28674246,697.49,697.14,0.5511561]
[1735555466392,0.28674246,697.49,697.15,0.5511561]
[1735555466586,0.28674246,697.49,696.72,1.07098187]
[1735555466789,0.28674246,697.49,696.73,0.55122046]
[1735555467091,0.28674246,697.49,696.74,0.55121073]
[1735555467289,0.28674246,697.49,696.75,0.55121073]
[1735555467485,0.28674246,697.49,696.76,0.55121073]
[1735555467690,0.28674246,697.49,696.77,0.55121073]
[1735555467988,0.28674246,697.49,696.78,0.55121073]
[1735555468293,0.28674246,697.49,696.79,0.55121073]
[1735555468489,0.28674246,697.49,696.8,0.55121073]
[1735555468689,0.28674246,697.49,696.81,0.55121073]
[1735555468894,0.28674246,697.49,696.82,0.55121073]
[1735555469093,0.28674246,697.49,696.83,0.55121073]
[1735555469288,0.28674246,697.49,696.84,0.55121073]
[1735555469491,0.28674246,697.49,696.85,0.55121073]
[1735555469690,0.28674246,697.49,696.86,0.55121073]
[1735555469890,0.28674246,697.49,696.87,0.55121073]
[1735555470093,0.28674246,697.49,696.68,1.07098187]
[1735555470393,0.28674246,697.49,696.69,0.55134872]
[1735555470593,0.28674246,697.49,696.7,0.55134872]
[1735555470786,0.28674246,697.49,696.67,1.07098187]
[1735555470787,0.28674246,697.49,696.71,0.55134872]
[1735555470985,0.28674246,697.49,696.72,0.55134872]
[1735555471192,0.28674246,697.49,696.73,0.55134872]
[1735555471387,0.28674246,697.49,696.74,0.55134872]
[1735555471594,0.28674246,697.49,696.75,0.55134872]
[1735555471790,0.28674246,697.49,696.76,0.55134872]
[1735555471991,0.28674246,697.49,696.77,0.55134872]
[1735555472190,0.28674246,697.49,696.78,0.55134872]
[1735555472388,0.28674246,697.49,696.79,0.55134872]
[1735555472593,0.28674246,697.49,696.8,0.55134872]
[1735555472793,0.28674246,697.49,696.81,0.55134872]
[1735555472995,0.28674246,697.49,696.82,0.55134872]
[1735555473200,0.28674246,697.49,696.83,0.55143529]
[1735555473390,0.28674246,697.49,696.84,0.55143529]
[1735555473595,0.28674246,697.49,696.85,0.55143529]
[1735555473790,0.28674246,697.49,696.86,0.55144528]
[1735555473995,0.28674246,697.49,696.87,0.55144528]
[1735555474195,0.28674246,697.49,696.88,0.55144528]
[1735555474395,0.28674246,697.49,696.89,0.55144528]
[1735555474596,0.28674246,697.49,696.9,0.55144528]
[1735555474791,0.28674246,697.49,696.91,0.55144528]
[1735555474990,0.28674246,697.49,696.92,0.55144528]
[1735555475190,0.28674246,697.49,696.93,0.55144528]
[1735555475392,0.28674246,697.49,696.94,0.55144528]
[1735555475691,0.28674246,697.49,696.95,0.55141227]
[1735555475893,0.28674246,697.49,696.96,0.55141227]
[1735555476090,0.28674246,697.49,696.97,0.55141227]
[1735555476289,0.28674246,697.49,696.98,0.55141227]
[1735555476496,0.28674246,697.49,696.99,0.55141227]
[1735555476696,0.28674246,697.49,697.0,0.55141227]
[1735555476898,0.28674246,697.49,697.01,0.55141227]
[1735555477097,0.28674246,697.49,697.02,0.55141227]
[1735555477398,0.28674246,697.49,697.03,0.55141227]
[1735555477597,0.28674246,697.49,697.04,0.55141227]
[1735555477897,0.28674246,697.49,697.05,0.55141227]
[1735555478094,0.28674246,697.49,697.06,0.55141227]
[1735555478291,0.28674246,697.49,697.07,0.55141227]
[1735555478495,0.28674246,697.49,697.08,0.55141227]
[1735555478790,0.28674246,697.49,697.09,0.55141227]
[1735555478999,0.28674246,697.49,697.1,0.55141227]
[1735555479297,0.28674246,697.49,696.73,1.07098187]
[1735555479498,0.28674246,697.49,696.74,0.55156821]
[1735555479698,0.28674246,697.49,696.75,0.55156821]
[1735555479992,0.28674246,697.49,696.76,0.55156821]
[1735555480197,0.28674246,697.49,696.77,0.55156821]
[1735555480393,0.28674246,697.49,696.78,0.55156821]
[1735555480592,0.28674246,697.49,696.79,0.55156821]
[1735555480795,0.28674246,697.49,696.8,0.55156821]
[1735555480998,0.28674246,697.49,696.81,0.55156821]
[1735555481198,0.28674246,697.49,696.82,0.55156821]
[1735555481396,0.28674246,697.49,696.83,0.55156821]
[1735555481599,0.28674246,697.49,696.84,0.55156821]
[1735555481796,0.28674246,697.49,696.76,1.07098187]
[1735555481797,0.28674246,697.49,696.85,0.55156821]
[1735555481997,0.28674246,697.49,696.86,0.55156821]
[1735555482300,0.28674246,697.49,696.09,1.2929911]
[1735555482301,0.28674246,697.49,696.75,1.07098187]
[1735555482599,0.28674246,697.49,696.76,0.55164704]
[1735555482801,0.28674246,697.49,696.77,0.55164704]
[1735555483193,0.28674246,697.49,696.78,0.55164704]
[1735555483394,0.28674246,697.49,696.79,0.55164704]
[1735555483595,0.28674246,697.49,696.8,0.55164704]
[1735555483793,0.28674246,697.49,696.81,0.55164704]
[1735555483994,0.28674246,697.49,696.82,0.55164704]
[1735555484197,0.28674246,697.49,696.83,0.55164704]
[1735555484397,0.28674246,697.49,696.84,0.55164704]
[1735555484598,0.28674246,697.49,696.85,0.55164704]
[1735555484795,0.28674246,697.49,696.86,0.55164704]
[1735555484994,0.28674246,697.49,696.44,1.06819847]
[1735555484995,0.28674246,697.49,696.87,0.55164704]
[1735555485193,0.28674246,697.49,696.88,0.55164704]
[1735555485399,0.28674246,697.49,696.89,0.55164704]
[1735555485701,0.28674246,697.49,696.9,0.55164704]
[1735555485999,0.28674246,697.49,696.91,0.55164704]
[1735555486201,0.28674246,697.49,696.92,0.55164704]
[1735555486395,0.28674246,697.49,696.93,0.55164704]
[1735555486601,0.28674246,697.49,696.94,0.55164704]
[1735555486800,0.28674246,697.49,696.95,0.55164704]
[1735555486995,0.28674246,697.49,696.96,0.55164704]
[1735555487199,0.28674246,697.49,696.97,0.55164704]
[1735555487399,0.28674246,697.49,696.98,0.55164704]
[1735555487601,0.28674246,697.49,696.99,0.55164704]
[1735555487802,0.28674246,697.49,697.0,0.55164704]
[1735555488002,0.28674246,697.49,697.01,0.55164704]
[1735555488203,0.28674246,697.49,697.02,0.55164704]
[1735555488400,0.28674246,697.49,697.03,0.55164704]
[1735555488598,0.28674246,697.49,696.69,1.07098187]
[1735555488800,0.28674246,697.49,696.7,0.55198521]
[1735555488999,0.28674246,697.49,696.71,0.55198521]
[1735555489202,0.28674246,697.49,696.72,0.55198521]
[1735555489402,0.28674246,697.49,696.73,0.55198521]
[1735555489704,0.28674246,697.49,696.74,0.55198521]
[1735555489906,0.28674246,697.49,696.75,0.55198521]
[1735555490204,0.28674246,697.49,696.76,0.55198521]
[1735555490399,0.28674246,697.49,696.77,0.55198521]
[1735555490599,0.28674246,697.49,696.68,1.07098187]
[1735555490804,0.28674246,697.49,696.69,0.55224245]
[1735555491106,0.28674246,697.49,696.7,0.55224245]
[1735555491406,0.28674246,697.49,696.71,0.55224245]
[1735555491700,0.28674246,697.49,696.72,0.55224245]
[1735555491902,0.28674246,697.49,696.73,0.55224187]
[1735555492104,0.28674246,697.49,696.74,0.55224187]
[1735555492306,0.28674246,697.49,696.75,0.55224187]
[1735555492504,0.28674246,697.49,696.76,0.55224187]
[1735555492699,0.28674246,697.49,696.77,0.55224187]
[1735555492900,0.28674246,697.49,696.78,0.55224187]
[1735555493099,0.28674246,697.49,696.79,0.55224187]
[1735555493303,0.28674246,697.49,696.8,0.55224187]
[1735555493501,0.28674246,697.49,696.81,0.55224187]
[1735555493702,0.28674246,697.49,696.82,0.55224187]
[1735555493902,0.28674246,697.49,696.83,0.55224187]
[1735555494104,0.28674246,697.49,696.84,0.55224187]
[1735555494303,0.28674246,697.49,696.85,0.55224187]
[1735555494502,0.28674246,697.49,696.86,0.55224187]
[1735555494701,0.28674246,697.49,696.87,0.55224187]
[1735555494901,0.28674246,697.49,696.88,0.55227025]
[1735555495101,0.28674246,697.49,696.89,0.55227025]
[1735555495299,0.28674246,697.49,696.9,0.55227025]
[1735555495503,0.28674246,697.49,696.91,0.55227025]
[1735555495704,0.28674246,697.49,696.92,0.55227025]
[1735555495905,0.28674246,697.49,696.93,0.55227025]
[1735555496205,0.28674246,697.49,696.94,0.55227025]
[1735555496407,0.28674246,697.49,696.95,0.55227025]
[1735555496608,0.28674246,697.49,696.96,0.55227025]
[1735555496802,0.28674246,697.49,696.97,0.55227025]
[1735555497003,0.28674246,697.49,695.94,1.2929911]
[1735555497004,0.28674246,697.49,696.98,0.55227025]
[1735555497200,0.28674246,697.49,696.99,0.55227025]
[1735555497405,0.28674246,697.49,696.76,1.07098187]
[1735555497406,0.28674246,697.49,697.0,0.55227025]
[1735555497606,0.28674246,697.49,697.01,0.55227025]
[1735555497806,0.28674246,697.49,696.76,1.07098187]
[1735555497807,0.28674246,697.49,697.02,0.55227025]
[1735555498004,0.28674246,697.49,697.03,0.55227733]
[1735555498207,0.28674246,697.49,697.04,0.55227733]
[1735555498509,0.28674246,697.49,697.05,0.11450236]
[1735555498711,0.28674246,697.49,696.77,1.07098187]
[1735555499011,0.28674246,697.49,696.74,1.07098187]
[1735555501009,0.28674246,697.49,696.5,1.06819847]
[1735555501010,0.28674246,697.49,696.78,1.07098187]
[1735555502912,0.28674246,697.49,696.81,1.07098187]
[1735555504014,0.28674246,697.49,696.77,1.07098187]
[1735555504411,0.26402177,697.48,696.77,1.07098187]
[1735555504913,0.26402214,697.47,696.85,1.07098187]
[1735555505115,0.26402214,697.46,696.85,1.07098187]
[1735555505316,0.28674246,697.49,696.85,1.07098187]
[1735555506119,0.28674246,697.49,696.77,1.07098187]
[1735555506417,0.28674246,697.49,696.04,2.19988069]
[1735555506717,0.28674246,697.49,694.77,6.41352808]
[1735555506913,0.28674246,697.49,694.78,6.41352808]
[1735555507119,0.28674246,697.49,694.79,3.52258682]
[1735555507316,0.28674246,697.49,694.8,3.52258682]
[1735555507517,0.28674246,697.49,694.81,6.41352808]
[1735555507714,0.28674246,697.49,694.82,3.52258682]
[1735555507913,0.28674246,697.49,694.14,5.4795795]
[1735555507914,0.28674246,697.49,694.83,6.41352808]
[1735555508117,0.28674246,697.49,694.84,6.41352808]
[1735555508313,0.28674246,697.49,694.85,3.52258682]
[1735555508517,0.28674246,697.49,694.86,3.52258682]
[1735555508714,0.28674246,697.49,694.87,6.41352808]
[1735555508920,0.28674246,697.49,696.94,1.07363394]
[1735555510319,0.28674246,697.49,696.95,1.07363394]
[1735555511323,0.28674246,697.49,696.94,1.07363394]
[1735555512424,0.28674246,697.49,696.93,1.07363394]
[1735555513625,0.28674246,697.49,696.36,2.19200264]
[1735555513626,0.28674246,697.49,696.22,1.07363394]
[1735555514820,0.28674246,697.49,696.81,1.07363394]
[1735555517329,0.28674246,697.49,696.19,2.19200264]
[1735555517330,0.28674246,697.49,696.88,1.07363394]
[1735555518731,0.28674246,697.49,696.26,1.07363394]
[1735555519927,0.28674246,697.49,696.4,1.07363394]
[1735555521531,0.28674246,697.49,696.8,1.07363394]
[1735555522332,0.28674246,697.49,696.77,1.07363394]
[1735555523328,0.28674246,697.49,696.78,1.07363394]
[1735555524435,0.28674246,697.49,696.75,1.07363394]
[1735555525131,0.28674246,697.49,696.79,1.07363394]
[1735555526237,0.28674246,697.49,696.8,1.07363394]
[1735555527232,0.28674246,697.49,696.82,1.07363394]
[1735555528136,0.28674246,697.49,696.77,1.07363394]
[1735555529139,0.28674246,697.49,696.75,1.07363394]
[1735555530441,0.28674246,697.49,696.77,1.07363394]
[1735555531339,0.28674246,697.49,696.83,1.07363394]
[1735555532243,0.28674246,697.49,696.76,1.07363394]
[1735555533443,0.28674246,697.49,696.77,1.07363394]
[1735555534139,0.28674246,697.49,696.78,1.07363394]
[1735555535343,0.28674246,697.49,696.79,1.07363394]
[1735555539744,0.28674246,697.49,696.89,1.07363394]
[1735555542652,0.28674246,697.49,696.43,1.28836073]
[1735555542653,0.28674246,697.49,696.88,1.07363394]
[1735555543849,0.28674246,697.49,696.9,1.07363394]
[1735555544959,0.28674246,697.49,696.35,2.19200264]
[1735555544960,0.28674246,697.49,696.88,1.07363394]
[1735555546053,0.28674246,697.49,696.89,1.07363394]
[1735555547155,0.28674246,697.49,696.94,1.07363394]
[1735555548154,0.28674246,697.49,696.5,1.28836073]
[1735555548155,0.28674246,697.49,696.95,1.07363394]
[1735555549355,0.28674246,697.49,696.88,1.07363394]
[1735555550554,0.28674246,697.49,696.96,1.07363394]
[1735555551851,0.28674246,697.49,696.97,1.07363394]
[1735555552955,0.28674246,697.49,696.96,1.07363394]
[1735555554060,0.28674246,697.49,696.94,1.07363394]
[1735555556762,0.28674246,697.49,696.92,1.07363394]
[1735555557561,0.28674246,697.49,696.87,1.07363394]
[1735555558659,0.28674246,697.49,696.85,1.07363394]
[1735555560863,0.28674246,697.49,696.86,1.07363394]
[1735555562061,0.28674246,697.49,696.26,1.28836073]
[1735555562062,0.28674246,697.49,696.85,1.07363394]
[1735555563959,0.28674246,697.49,696.87,1.07363394]
[1735555564957,0.28674246,697.49,696.63,1.07363394]
[1735555564958,0.28674246,697.49,696.88,1.07363394]
[1735555565764,0.28674246,697.49,696.89,1.07363394]
[1735555568262,0.28674246,697.49,697.03,1.07363394]
[1735555569467,0.28674246,697.49,697.05,1.07363394]
[1735555571670,0.28674246,697.49,697.04,1.07363394]
[1735555572465,0.28674246,697.49,696.86,1.07363394]
[1735555572466,0.28674246,697.49,696.96,1.07363394]
[1735555573269,0.28674246,697.49,696.99,1.07363394]
[1735555574372,0.28674246,697.49,696.97,1.07363394]
[1735555575273,0.28674246,697.49,696.99,1.07363394]
[1735555576273,0.28674246,697.49,697.01,1.07363394]
[1735555577673,0.28674246,697.49,697.0,1.07363394]
[1735555578880,0.28674246,697.49,696.99,1.07363394]
[1735555579980,0.28674246,697.49,696.97,1.07363394]
[1735555580777,0.28674246,697.49,696.93,1.07363394]
[1735555581982,0.28674246,697.49,696.37,1.28836073]
[1735555581983,0.28674246,697.49,696.94,1.07363394]
[1735555582877,0.28674246,697.49,696.92,1.07363394]
[1735555583781,0.28674246,697.49,696.23,2.19200264]
[1735555583782,0.28674246,697.49,696.93,1.07363394]
[1735555584879,0.28674246,697.49,696.24,2.19200264]
[1735555584880,0.28674246,697.49,696.98,1.07363394]
[1735555586180,0.28674246,697.49,697.0,1.07363394]
[1735555586984,0.28674246,697.49,696.97,1.07363394]
[1735555587883,0.28674246,697.49,697.0,1.07363394]
[1735555588686,0.28674246,697.49,697.09,1.07363394]
[1735555589484,0.28674246,697.49,697.08,1.07363394]
[1735555590689,0.28674246,697.49,697.06,1.07363394]
[1735555591891,0.28674246,697.49,696.92,1.07363394]
[1735555593697,0.28674246,697.49,696.91,1.07363394]
[1735555594593,0.28674246,697.49,696.9,1.07363394]
[1735555595696,0.28674246,697.49,696.91,1.07363394]
[1735555596893,0.28674246,697.49,696.88,1.07363394]
[1735555597698,0.28674246,697.49,696.83,1.07363394]
[1735555598699,0.28674246,697.49,696.82,1.07363394]
[1735555599597,0.28674246,697.49,696.8,1.07363394]
[1735555600503,0.28674246,697.49,696.79,1.07363394]
[1735555601501,0.28674246,697.49,696.77,1.07363394]
[1735555602502,0.28674246,697.49,696.75,1.07363394]
[1735555603397,0.28674246,697.49,696.35,1.07363394]
[1735555603398,0.28674246,697.49,696.76,1.07363394]
[1735555605797,0.28674246,697.49,696.78,1.07363394]
[1735555606705,0.28674246,697.49,696.77,1.07363394]
[1735555607899,0.28674246,697.49,696.13,1.28836073]
[1735555607900,0.28674246,697.49,696.78,1.07363394]
[1735555609404,0.28674246,697.49,696.81,1.07363394]
[1735555610000,0.28674246,697.49,696.78,1.07363394]
[1735555611201,0.28674246,697.49,696.83,1.07363394]
[1735555612399,0.28674246,697.49,696.84,1.07363394]
[1735555613409,0.28674246,697.49,696.59,1.07363394]
[1735555613410,0.28674246,697.49,696.82,1.07363394]
[1735555614506,0.28674246,697.49,696.85,1.07363394]
[1735555615803,0.28674246,697.49,696.13,2.19200264]
[1735555615804,0.28674246,697.49,696.91,1.07363394]
[1735555616513,0.28674246,697.49,696.29,2.19200264]
[1735555616514,0.28674246,697.49,696.95,1.07363394]
[1735555617812,0.28674246,697.49,696.93,1.07363394]
[1735555618705,0.28674246,697.49,696.95,1.07363394]
[1735555619613,0.28674246,697.49,696.93,1.07363394]
[1735555622011,0.28674246,697.49,696.35,0.79810033]
[1735555622012,0.28674246,697.49,696.9,1.07363394]
[1735555622913,0.28674246,697.49,696.92,1.07363394]
[1735555625606,0.28674246,697.49,696.91,1.07363394]
[1735555626812,0.28674246,697.49,696.92,1.07363394]
[1735555627707,0.28674246,697.49,696.91,1.07363394]
[1735555629111,0.28674246,697.49,696.92,1.07363394]
[1735555630005,0.28674246,697.49,696.96,1.07363394]
[1735555631014,0.28674246,697.49,696.97,1.07363394]
[1735555633414,0.28674246,697.49,697.02,1.07363394]
[1735555634312,0.28674246,697.49,696.99,1.07363394]
[1735555636415,0.28674246,697.49,696.35,2.19200264]
[1735555636416,0.28674246,697.49,697.0,1.07363394]
[1735555637312,0.28674246,697.49,696.37,2.19200264]
[1735555637313,0.28674246,697.49,697.03,1.07363394]
[1735555638118,0.28674246,697.49,697.06,1.07363394]
[1735555639120,0.28674246,697.49,697.08,1.07363394]
[1735555640421,0.28674246,697.49,696.97,1.07363394]
[1735555641222,0.28674246,697.49,696.96,1.07363394]
[1735555641819,0.28674246,697.49,696.95,1.07363394]
[1735555643025,0.28674246,697.49,696.96,1.07363394]
[1735555643930,0.28674246,697.49,696.97,1.07363394]
[1735555644828,0.28674246,697.49,696.96,1.07363394]
[1735555646830,0.28674246,697.49,696.93,1.07363394]
[1735555647728,0.28674246,697.49,696.14,2.19200264]
[1735555647729,0.28674246,697.49,696.97,1.07363394]
[1735555648630,0.28674246,697.49,696.96,1.07363394]
[1735555651034,0.28674246,697.49,696.97,1.07363394]
[1735555651835,0.28674246,697.49,696.95,1.07363394]
[1735555652634,0.28674246,697.49,696.92,1.07363394]
[1735555653435,0.28674246,697.49,696.93,1.07363394]
[1735555654338,0.28674246,697.49,696.68,1.07363394]
[1735555654339,0.28674246,697.49,696.92,1.07363394]
[1735555656741,0.28674246,697.49,696.96,1.07363394]